Workbook

Sheet 家計簿
B1: 田中家の家計簿
B2: 年: | C2: 2013
B4: 収支 | C4: 1 月 | D4: 2 月 | E4: 3 月 | F4: 4 月 | G4: 5 月 | H4: 6 月 | I4: 7 月 | J4: 8 月 | K4: 9 月 | L4: 10 月 | M4: 11 月 | N4: 12 月 | O4: 現在までの合計 | P4: 傾向
B5: 毎月の収支 | C5: =tblIncome[[#Totals],[1 月]]-tblExpenses[[#Totals],[1 月]] -> ¥122,000 | D5: =tblIncome[[#Totals],[2 月]]-tblExpenses[[#Totals],[2 月]] -> ¥158,700 | E5: =tblIncome[[#Totals],[3 月]]-tblExpenses[[#Totals],[3 月]] -> ¥117,400 | F5: =tblIncome[[#Totals],[4 月]]-tblExpenses[[#Totals],[4 月]] -> ¥144,500 | G5: =tblIncome[[#Totals],[5 月]]-tblExpenses[[#Totals],[5 月]] -> ¥139,100 | H5: =tblIncome[[#Totals],[6 月]]-tblExpenses[[#Totals],[6 月]] -> ¥143,400 | I5: =tblIncome[[#Totals],[7 月]]-tblExpenses[[#Totals],[7 月]] -> ¥108,500 | J5: =tblIncome[[#Totals],[8 月]]-tblExpenses[[#Totals],[8 月]] -> ¥118,100 | K5: =tblIncome[[#Totals],[9 月]]-tblExpenses[[#Totals],[9 月]] -> ¥144,500 | L5: =tblIncome[[#Totals],[10 月]]-tblExpenses[[#Totals],[10 月]] -> ¥146,600 | M5: =tblIncome[[#Totals],[11 月]]-tblExpenses[[#Totals],[11 月]] -> ¥0 | N5: =tblIncome[[#Totals],[12 月]]-tblExpenses[[#Totals],[12 月]] -> ¥0 | O5: =tblIncome[[#Totals],[現在までの合計]]-tblExpenses[[#Totals],[現在までの合計]] -> ¥1,342,800
B7: 収入の種類 | C7: 1 月 | D7: 2 月 | E7: 3 月 | F7: 4 月 | G7: 5 月 | H7: 6 月 | I7: 7 月 | J7: 8 月 | K7: 9 月 | L7: 10 月 | M7: 11 月 | N7: 12 月 | O7: 現在までの合計 | P7: 傾向
B8: 収入 1 | C8: ¥400,000 | D8: ¥441,000 | E8: ¥401,900 | F8: ¥426,300 | G8: ¥412,300 | H8: ¥430,800 | I8: ¥416,200 | J8: ¥416,500 | K8: ¥424,800 | L8: ¥432,400 | O8: =SUM(tblIncome[[#This Row],[1 月]:[12 月]]) -> ¥4,202,200
B9: 収入 2 | C9: ¥27,500 | D9: ¥29,600 | E9: ¥25,100 | F9: ¥26,900 | G9: ¥25,200 | H9: ¥25,200 | I9: ¥26,200 | J9: ¥25,800 | K9: ¥29,600 | L9: ¥27,000 | O9: =SUM(tblIncome[[#This Row],[1 月]:[12 月]]) -> ¥268,100
B10: その他の収入 | C10: ¥50,000 | D10: ¥50,700 | E10: ¥55,100 | F10: ¥55,600 | G10: ¥58,800 | H10: ¥53,400 | I10: ¥53,300 | J10: ¥58,500 | K10: ¥56,000 | L10: ¥52,000 | O10: =SUM(tblIncome[[#This Row],[1 月]:[12 月]]) -> ¥543,400
B11: 総収入 | C11: =SUBTOTAL(109,tblIncome[1 月]) -> ¥477,500 | D11: =SUBTOTAL(109,tblIncome[2 月]) -> ¥521,300 | E11: =SUBTOTAL(109,tblIncome[3 月]) -> ¥482,100 | F11: =SUBTOTAL(109,tblIncome[4 月]) -> ¥508,800 | G11: =SUBTOTAL(109,tblIncome[5 月]) -> ¥496,300 | H11: =SUBTOTAL(109,tblIncome[6 月]) -> ¥509,400 | I11: =SUBTOTAL(109,tblIncome[7 月]) -> ¥495,700 | J11: =SUBTOTAL(109,tblIncome[8 月]) -> ¥500,800 | K11: =SUBTOTAL(109,tblIncome[9 月]) -> ¥510,400 | L11: =SUBTOTAL(109,tblIncome[10 月]) -> ¥511,400 | M11: =SUBTOTAL(109,tblIncome[11 月]) -> ¥0 | N11: =SUBTOTAL(109,tblIncome[12 月]) -> ¥0 | O11: =SUBTOTAL(109,tblIncome[現在までの合計]) -> ¥5,013,700
B13: 支出 | C13: 1 月 | D13: 2 月 | E13: 3 月 | F13: 4 月 | G13: 5 月 | H13: 6 月 | I13: 7 月 | J13: 8 月 | K13: 9 月 | L13: 10 月 | M13: 11 月 | N13: 12 月 | O13: 現在までの合計 | P13: 傾向
B14: 住居費 | C14: ¥150,000 | D14: ¥150,000 | E14: ¥150,000 | F14: ¥150,000 | G14: ¥150,000 | H14: ¥150,000 | I14: ¥150,000 | J14: ¥150,000 | K14: ¥150,000 | L14: ¥150,000 | O14: =SUM(tblExpenses[[#This Row],[1 月]:[12 月]]) -> ¥1,500,000
B15: 食料品 | C15: ¥25,000 | D15: ¥33,100 | E15: ¥29,900 | F15: ¥33,300 | G15: ¥32,400 | H15: ¥31,300 | I15: ¥33,800 | J15: ¥22,500 | K15: ¥25,800 | L15: ¥32,200 | O15: =SUM(tblExpenses[[#This Row],[1 月]:[12 月]]) -> ¥299,300
B16: 自動車ローン | C16: ¥34,500 | D16: ¥34,500 | E16: ¥34,500 | F16: ¥34,500 | G16: ¥34,500 | H16: ¥34,500 | I16: ¥34,500 | J16: ¥34,500 | K16: ¥34,500 | L16: ¥34,500 | O16: =SUM(tblExpenses[[#This Row],[1 月]:[12 月]]) -> ¥345,000
B17: 保険料 | C17: ¥12,000 | D17: ¥12,000 | E17: ¥12,000 | F17: ¥12,000 | G17: ¥12,000 | H17: ¥12,000 | I17: ¥12,000 | J17: ¥12,000 | K17: ¥12,000 | L17: ¥12,000 | O17: =SUM(tblExpenses[[#This Row],[1 月]:[12 月]]) -> ¥120,000
B18: 自宅電話 | C18: ¥5,000 | D18: ¥5,000 | E18: ¥5,000 | F18: ¥5,000 | G18: ¥5,000 | H18: ¥5,000 | I18: ¥5,000 | J18: ¥5,000 | K18: ¥5,000 | L18: ¥5,000 | O18: =SUM(tblExpenses[[#This Row],[1 月]:[12 月]]) -> ¥50,000
B19: 携帯電話代 | C19: ¥7,200 | D19: ¥7,000 | E19: ¥8,000 | F19: ¥7,000 | G19: ¥7,500 | H19: ¥8,000 | I19: ¥9,000 | J19: ¥7,300 | K19: ¥7,500 | L19: ¥7,000 | O19: =SUM(tblExpenses[[#This Row],[1 月]:[12 月]]) -> ¥75,500
B20: ケーブル TV | C20: ¥6,000 | D20: ¥6,300 | E20: ¥6,500 | F20: ¥6,000 | G20: ¥6,500 | H20: ¥6,000 | I20: ¥6,300 | J20: ¥6,000 | K20: ¥6,300 | L20: ¥6,000 | O20: =SUM(tblExpenses[[#This Row],[1 月]:[12 月]]) -> ¥61,900
B21: インターネット | C21: ¥4,500 | D21: ¥4,500 | E21: ¥4,500 | F21: ¥4,500 | G21: ¥4,500 | H21: ¥4,500 | I21: ¥4,500 | J21: ¥4,500 | K21: ¥4,500 | L21: ¥4,500 | O21: =SUM(tblExpenses[[#This Row],[1 月]:[12 月]]) -> ¥45,000
B22: 電気 | C22: ¥15,500 | D22: ¥15,500 | E22: ¥15,800 | F22: ¥16,000 | G22: ¥16,500 | H22: ¥20,000 | I22: ¥34,000 | J22: ¥35,000 | K22: ¥24,000 | L22: ¥18,000 | O22: =SUM(tblExpenses[[#This Row],[1 月]:[12 月]]) -> ¥210,300
B23: 水道 | C23: ¥3,500 | D23: ¥3,500 | E23: ¥3,700 | F23: ¥3,900 | G23: ¥4,500 | H23: ¥4,200 | I23: ¥4,200 | J23: ¥3,600 | K23: ¥3,800 | L23: ¥4,000 | O23: =SUM(tblExpenses[[#This Row],[1 月]:[12 月]]) -> ¥38,900
B24: ガス | C24: ¥5,000 | D24: ¥4,500 | E24: ¥4,000 | F24: ¥4,000 | G24: ¥4,200 | H24: ¥5,000 | I24: ¥5,500 | J24: ¥4,000 | K24: ¥4,300 | L24: ¥3,000 | O24: =SUM(tblExpenses[[#This Row],[1 月]:[12 月]]) -> ¥43,500
B25: 娯楽費 | C25: ¥12,300 | D25: ¥9,200 | E25: ¥5,800 | F25: ¥13,100 | G25: ¥4,600 | H25: ¥10,500 | I25: ¥8,400 | J25: ¥10,800 | K25: ¥13,200 | L25: ¥13,600 | O25: =SUM(tblExpenses[[#This Row],[1 月]:[12 月]]) -> ¥101,500
B26: 教育費 | C26: ¥55,000 | D26: ¥55,000 | E26: ¥55,000 | F26: ¥55,000 | G26: ¥55,000 | H26: ¥55,000 | I26: ¥55,000 | J26: ¥55,000 | K26: ¥55,000 | L26: ¥55,000 | O26: =SUM(tblExpenses[[#This Row],[1 月]:[12 月]]) -> ¥550,000
B27: 貯蓄 | C27: ¥20,000 | D27: ¥22,500 | E27: ¥30,000 | F27: ¥20,000 | G27: ¥20,000 | H27: ¥20,000 | I27: ¥25,000 | J27: ¥32,500 | K27: ¥20,000 | L27: ¥20,000 | O27: =SUM(tblExpenses[[#This Row],[1 月]:[12 月]]) -> ¥230,000
B28: 総支出 | C28: =SUBTOTAL(109,tblExpenses[1 月]) -> ¥355,500 | D28: =SUBTOTAL(109,tblExpenses[2 月]) -> ¥362,600 | E28: =SUBTOTAL(109,tblExpenses[3 月]) -> ¥364,700 | F28: =SUBTOTAL(109,tblExpenses[4 月]) -> ¥364,300 | G28: =SUBTOTAL(109,tblExpenses[5 月]) -> ¥357,200 | H28: =SUBTOTAL(109,tblExpenses[6 月]) -> ¥366,000 | I28: =SUBTOTAL(109,tblExpenses[7 月]) -> ¥387,200 | J28: =SUBTOTAL(109,tblExpenses[8 月]) -> ¥382,700 | K28: =SUBTOTAL(109,tblExpenses[9 月]) -> ¥365,900 | L28: =SUBTOTAL(109,tblExpenses[10 月]) -> ¥364,800 | M28: =SUBTOTAL(109,tblExpenses[11 月]) -> ¥0 | N28: =SUBTOTAL(109,tblExpenses[12 月]) -> ¥0 | O28: =SUBTOTAL(109,tblExpenses[現在までの合計]) -> ¥3,670,900
